Workbook

Sheet Yurtdışı
C2: Yurtdışı Seyahat Harcırahı
C4: Parametreler
C5: Seyahat edenin ismini yazınız
C6: Seyahat edilen ülkeyi seçiniz
C7: Brüt ücret aralığını (asgari/azami) seçiniz
C8: Seyahatin başlangıç tarihi yazınız (yolculuklar dahil)
C9: Seyahatin bitiş tarihi yazınız (yolculuklar dahil)
C10: İlk 10 gün için Konaklama Gider Farkı Hesaplansın mı ?
C11: Gerçek (faturalı) konaklama giderleri toplamını yazınız
C12: Seyahatin Bittiği Tarihteki DÖVİZ SATIŞ Kurunu yazınız
C13: İlk 10 gün için Harcırah %50 Artırımlı Uygulansın mı ?
C16: Hesaplanan Harcırah
C17: Seyahat süresi (gün)
C18: Bir günlük harcırah (yol ücreti hariç)
C19: Toplam Çıplak Harcırah Tutarı (Yemek ve Konaklama Giderleri Karşılığı)
C20: İlk 10 Gün İçin % 50 Fazla Harcırah farkı
C21: İlk 10 Gün İçin Konaklama Gider Farkı
C22: Yemek ve Konaklama İçin Ödenebilecek Max. Harcırah Tutarı
C23: Brüt Harcırahın TL Karşılığı
C24: Damga Vergisi Kesintisi | D24: 0.00759
C25: Net Harcırahın TL Karşılığı | D25: TL
C27: nin imzası
C30: Uyarı: Hesapladığınız bu harcırah sadece yemek ve konaklama giderleri karşılığı içindir. Gerçek yol giderlerini (uçak, otobüs, taksi vb) fatura karşılığı ayrıca ödeyebilirsiniz.

Sheet Yurtiçi
C2: Yurtiçi Seyahat Harcırahı
C4: Parametreler
C5: Seyahat edenin ismini yazınız
C6: Seyahat edilen şehri seçiniz | E6: 1
C7: Brüt ücret aralığı (asgari/azami) seçiniz | E7: 1
C8: Seyahatin başlangıç tarihi yazınız (yolculuklar dahil)
C9: Seyahatin bitiş tarihi yazınız (yolculuklar dahil)
C16: Hesaplanan Harcırah
C17: Seyahat süresi (gün)
C18: Bir günlük harcırah (yol ücreti hariç)
C19: Toplam Çıplak Harcırah Tutarı (Yemek ve Konaklama Giderleri Karşılığı)
C24: Damga Vergisi Kesintisi | D24: 0.00759
C25: Net Harcırah Tutarı | D25: TL
C27: İrfan Sarıkaya'nin imzası
C30: Uyarı: Hesapladığınız bu harcırah sadece yemek ve konaklama giderleri karşılığı içindir. Gerçek yol giderlerini (uçak, otobüs, taksi vb) fatura karşılığı ayrıca ödeyebilirsiniz.

Sheet Kıbrıs
C2: Kuzey Kıbrıs Seyahat Harcırahı
C4: Parametreler
C5: Seyahat edenin ismini yazınız
C6: Seyahat edilen yer
C7: Brüt ücret aralığı (asgari/azami) seçiniz
C8: Seyahatin başlangıç tarihi yazınız (yolculuklar dahil)
C9: Seyahatin bitiş tarihi yazınız (yolculuklar dahil)
C16: Hesaplanan Harcırah
C17: Seyahat süresi (gün)
C18: Bir günlük harcırah (yol ücreti hariç)
C19: Toplam Çıplak Harcırah Tutarı (Yemek ve Konaklama Giderleri Karşılığı)
C24: Damga Vergisi Kesintisi | D24: 0.00759
C25: Net Harcırah Tutarı | D25: TL
C27: nin imzası
C30: Uyarı: Hesapladığınız bu harcırah sadece yemek ve konaklama giderleri karşılığı içindir. Gerçek yol giderlerini (uçak, otobüs, taksi vb) fatura karşılığı ayrıca ödeyebilirsiniz.

Sheet Data
D5: YurtDIŞI Harcırah ( Yemek ve Konaklama için) Miktarları ve Dilimleri
D8: Sıra | E8: ÜLKELER | F8: PARA BİRİMLERİ | G8: II SÜTUN | H8: III SÜTUN | I8: V SÜTUN | J8: VI SÜTUN | K8: VII SÜTUN | M8: Sıra | N8: Geç. Tarihi | O8: 2024-07-01
D9: 1 | E9: A.B.D. | F9: USD | G9: 182 | H9: 146 | I9: 117 | J9: 110 | K9: 93 | M9: No | N9: Denk Geldiği Sütun | O9: En Alt | P9: En Üst
D10: 2 | E10: Almanya | F10: EURO | G10: 164 | H10: 131 | I10: 105 | J10: 99 | K10: 83 | M10: 1 | N10: II | O10: 22832.79 | P10: 999999
D11: 3 | E11: Avustralya | F11: Avustralya Doları | G11: 283 | H11: 227 | I11: 181 | J11: 171 | K11: 143 | M11: 2 | N11: III | O11: 22669.4 | P11: 22832.78
D12: 4 | E12: Avusturya | F12: EURO | G12: 166 | H12: 132 | I12: 106 | J12: 100 | K12: 84 | M12: 3 | N12: IV | O12: 19244.27 | P12: 22669.39
D13: 5 | E13: Belçika | F13: EURO | G13: 161 | H13: 128 | I13: 103 | J13: 97 | K13: 81 | M13: 4 | N13: V | O13: 15039.36 | P13: 19244.26
D14: 6 | E14: Danimarka | F14: Danimarka Kronu | G14: 1238 | H14: 988 | I14: 791 | J14: 746 | K14: 627 | M14: 5 | N14: VI | O14: 1 | P14: 15039.35
D15: 7 | E15: Finlandiya | F15: EURO | G15: 148 | H15: 119 | I15: 95 | J15: 90 | K15: 74
D16: 8 | E16: Fransa | F16: EURO | G16: 160 | H16: 127 | I16: 102 | J16: 96 | K16: 81
D17: 9 | E17: Hollanda | F17: EURO | G17: 156 | H17: 125 | I17: 100 | J17: 94 | K17: 80 | M17: Kaynaklar
D18: 10 | E18: İngiltere | F18: Sterlin | G18: 115 | H18: 91 | I18: 74 | J18: 69 | K18: 59
D19: 11 | E19: İrlanda | F19: EURO | G19: 155 | H19: 124 | I19: 99 | J19: 94 | K19: 78 | M19: Harcırah Miktarları : | O19: 10 Ocak 2022 tarihli Resmi Gazetede yayımlanan 6656 sayılı CBK
D20: 12 | E20: İspanya | F20: EURO | G20: 158 | H20: 126 | I20: 101 | J20: 95 | K20: 80
D21: 13 | E21: İsveç | F21: İsveç Kronu | G21: 1359 | H21: 1085 | I21: 867 | J21: 819 | K21: 687
D22: 14 | E22: İsviçre | F22: İsviçre Frangı | G22: 283 | H22: 226 | I22: 181 | J22: 171 | K22: 143 | M22: Dilimler | O22: 5 Ocak 2024 tarihli Hazine ve Maliye Bakanlığı Kamu Mali Yönetim ve Dönüşüm GM Genelgesinde
D23: 15 | E23: İtalya | F23: EURO | G23: 152 | H23: 122 | I23: 98 | J23: 92 | K23: 77 | O23: 5 Temmuz 2024 tarihli Hazine ve Maliye Bakanlığı Kamu Mali Yönetim ve Dönüşüm GM Genelgesinde
D24: 16 | E24: Japonya | F24: Japon Yeni | G24: 31405 | H24: 25127 | I24: 20118 | J24: 18901 | K24: 15914
D25: 17 | E25: Kanada | F25: Kanada Doları | G25: 244 | H25: 195 | I25: 156 | J25: 147 | K25: 125
D26: 18 | E26: Kuveyt | F26: Kuveyt Dinarı | G26: 50 | H26: 40 | I26: 33 | J26: 31 | K26: 25
D27: 19 | E27: Lüksemburg | F27: EURO | G27: 161 | H27: 128 | I27: 103 | J27: 97 | K27: 82 | M27: Artırımlı Harcırah Uygulaması
D28: 20 | E28: Norveç | F28: Norveç Kronu | G28: 1193 | H28: 952 | I28: 762 | J28: 719 | K28: 604 | M28: Evet
D29: 21 | E29: Portekiz | F29: EURO | G29: 155 | H29: 124 | I29: 99 | J29: 93 | K29: 78 | M29: Hayır
D30: 22 | E30: Suudi Arabistan | F30: Suudi A. Riyali | G30: 617 | H30: 492 | I30: 395 | J30: 372 | K30: 313
D31: 23 | E31: Yunanistan | F31: EURO | G31: 158 | H31: 126 | I31: 101 | J31: 95 | K31: 80 | M31: Konaklama Gider Farkı Ödemesi
D32: 24 | E32: Diğer AB Ülkeleri | F32: EURO | G32: 127 | H32: 101 | I32: 81 | J32: 76 | K32: 65 | M32: Evet
D33: 25 | E33: Diğer Ülkeler | F33: ABD Doları | G33: 157 | H33: 125 | I33: 100 | J33: 95 | K33: 80 | M33: Hayır
C51: YurtİÇİ Harcırah (Yemek ve Konaklama için) Miktarları ve Dilimleri
H53: 2024
E54: Geç. Tarihi | F54: 2024-07-01 | H54: Harcırah | M54: Kaynaklar
E55: Dereceler | F55: En Alt | G55: En Üst | H55: TL
E56: 1 | F56: 22832.79 | G56: 999999 | H56: 480 | M56: Harcırah Miktarları : | O56: 7489 sayılı 2023 Yılı Kesin Bütçe Kanunu H çetveli
E57: 2 | F57: 22669.4 | G57: 22832.78 | H57: 465
E58: 3 | F58: 20672.24 | G58: 22669.39 | H58: 435
E59: 4 | F59: 19038.2 | G59: 20672.23 | H59: 420 | M59: Dilimler | O59: 5 Ocak 2024 tarihli Hazine ve Maliye Bakanlığı Kamu Mali Yönetim ve Dönüşüm GM Genelgesinde
E60: 5 | F60: 15039.36 | G60: 19038.19 | H60: 405 | O60: 5 Temmuz 2024 tarihli Hazine ve Maliye Bakanlığı Kamu Mali Yönetim ve Dönüşüm GM Genelgesinde
E61: 6 | F61: 1 | G61: 15039.35 | H61: 400
C75: Kuzey Kıbrıs Harcırah ( Yemek ve Konaklama için) Miktarları ve Dilimleri
H77: 2023
E78: Geç. Tarihi | F78: 2024-07-01 | H78: Harcırah | M78: Kaynaklar
E79: Dereceler | F79: En Alt | G79: En Üst | H79: TL
E80: 1 | F80: 22832.79 | G80: 999999 | H80: 557 | M80: Harcırah Miktarları : | O80: 10 Ocak 2023 tarihli Resmi Gazetede yayımlanan 6656 sayılı CBK
E81: 2 | F81: 22669.4 | G81: 22832.78 | H81: 490
E82: 3 | F82: 19244.27 | G82: 22669.39 | H82: 424
E83: 4 | F83: 15039.36 | G83: 19244.26 | H83: 357 | M83: Dilimler | O83: 5 Ocak 2024 tarihli Hazine ve Maliye Bakanlığı Kamu Mali Yönetim ve Dönüşüm GM Genelgesinde
E84: 5 | F84: 1 | G84: 15039.35 | H84: 290 | O84: 5 Temmuz 2024 tarihli Hazine ve Maliye Bakanlığı Kamu Mali Yönetim ve Dönüşüm GM Genelgesinde
L115: 109.1
D121: Adana | F121: Kuzey Kıbrıs
D122: Adiyaman
D123: Afyonkarahisar
D124: Ağri
D125: Aksaray
D126: Amasya
D127: Ankara
D128: Antalya
D129: Ardahan
D130: Artvin
D131: Aydin
D132: Balikesir
D133: Bartin
D134: Batman
D135: Bayburt
D136: Bilecik
D137: Bingöl
D138: Bitlis
D139: Bolu
D140: Burdur
D141: Bursa
D142: Çanakkale
D143: Çankiri
D144: Çorum
D145: Denizli
D146: Diyarbakir
D147: Edirne
D148: Elaziğ
D149: Erzincan
D150: Erzurum
D151: Eskişehir
D152: Gaziantep
D153: Giresun
D154: Gümüşhane
D155: Hakkari
D156: Hatay
D157: İğdir
D158: İsparta
D159: İstanbul
D160: İzmir
D161: Kahramanmaraş
D162: Karabük
D163: Karaman
D164: Kars
D165: Kastamonu
D166: Kayseri
D167: Kirikkale
D168: Kirklareli
D169: Kirşehir
D170: Kilis
D171: Kocaeli
D172: Konya
D173: Kütahya
D174: Malatya
D175: Manisa
D176: Mardin
D177: Mersin
D178: Muğla
D179: Muş
D180: Nevşehir
D181: Niğde
D182: Ordu
D183: Osmaniye
D184: Rize
D185: Sakarya
D186: Samsun
D187: Siirt
D188: Sinop
D189: Sivas
D190: Şanliurfa
D191: Şirnak
D192: Tekirdağ
D193: Tokat
D194: Trabzon
D195: Tunceli
D196: Uşak
D197: Van
D198: Yalova
D199: Yozgat
D200: Zonguldak
D201: Birden fazla şehir

Sheet Notlar (hidden)
B2: YEMEK VE KONAKLAMA KARŞILIĞI ÖDENECEK GÖTÜRÜ HARCIRAH
D3: < YOL GİDERLERİ AYRICA, ANCAK BELGEYE DAYANARAK ÖDENİR>
B5: YURTDIŞI HARCIRAH
B7: 1-Sadece VERİ bölümündeki SARI desenli alanlara gerekli bilgileri giriniz. Bu alanlar dışında herhangibir alana veri girişi yapmayınız.
B9: 2-Seyahate gidilen ülkeyi KUTUCUKTAN seçiniz. Seçilen ülke için geçerli döviz cinsi OTOMATİK olarak gelecektir.
B11: 3-Seyahate giden kişinin en son brüt ücret aralığını kutucuktan seciniz, ücret aralığı değerlerinden birisini seçtiğinizde, diğeri OTOMATİK olarak gelecektir. Örneğin brüt ücreti 1.000 YTL olan personel 972,29 - 1.078,65 YTL ücret aralığında bulunuyor demektir. Bunun için 972,29 TL yi kuçuktan seçtiğinizde 1.078,65 YTL otomatik olarak gelecektir.
B13: 4-Seyahat edene, ilk 10 gün için KONAKLAMA-YİYECEK harcırahının % 50 oranında fazla harcırah verilebilir. Şayet % 50 daha fazla harcırah uygulaması yapmak istiyorsanız kutucukda ( EVET ) , yapmak istemiyorsanız ( HAYIR ) seçiniz.
B15: 5-Seyahat edenin, ilk 10 gün için ibraz ettiği KONAKLAMA faturasında yer alan tutar, Konaklama-Yiyecek için hesaplanan harcırahın % 40 dan fazla ise, bu durumda % 40 dan fazla olan kısmın % 70 i personele ayrıca ödenebilir. Bu ödemeyi yapmak istiyorsanız ilgili kutucukda ( EVET ) , yapmak istemiyorsanız ( HAYIR ) seçiniz. Ancak ek olarak ödenecek bu tutar, vergiden istisna gündelik tutarının; aylık seviyesi 1 ve 2 sıralarda (I-III kademelerde) olanlar için % 100’ünden, diğerleri için %70’inden fazla olamaz.
B17: 6- Harcırahın YTL karşılığını hesaplamak için ilgili kutucuğa SEYAHATİN BİTTİĞİ TARİHTEKİ TC MB DÖVİZ SATIŞ KURUNU yazınız.
B19: 7- SARI desenli alanlara gerekli veriler girildiğinde ve kutucuklardan gerekli seçimler yapıldığında, personele YEMEK ve KONAKLAMA giderleri karşılığı olarak ücret olarak gelir vergisine tabi tutulmaksızın verilebilecek azami harcırah otomatik olarak hesaplanmış olacaktır. Hesaplamalar iki ana prensibe dayanmaktadır. Yol masrafları (Uçak, Gemi, Otobüs gibi) için götürü harcırah verilmez.Bunların faturası var ise , faturaya dayanılarak gider yazılabilir.Yol masraflarının faturası yok ise bunlar için götürü harcırah verilemez.
B21: YURT DIŞI VE YURT İÇİ HARCIRAH ÖDEMESİNDE DİKKAT EDİLECEK HUSUSLAR
B23: Gelir vergisinden istisna edilen gündelik uygulamasında aşağıdaki hususlara dikkat edilmelidir:
B24: 1) Aylık ücret tutarlarına göre belirlenen gündelik tutarının vergiden istisna edilen tutarı aşmadığı hallerde bu ödemelerden sadece damga vergisi kesintisi yapılacaktır. İstisna tutarı aşan gündelik ödendiği durumda aşan kısım, ücretlinin içinde bulunduğu gelir dilimine karşılık gelen vergi oranı ve damga vergisi dikkate alınarak brütleştirilmek suretiyle gelir vergisi kesintisine tabi tutulacaktır.
B25: 2) Yurt dışı gündeliklerin TL cinsinden tahakkuku, yabancı paranın T.C. Merkez Bankasınca ilan edilen döviz satış kuru esas alınarak yapılmalıdır.
B26: 3) Yurt dışı seyahatin ilk 10 günü için vergiden istisna gündelik tutarı %50 zamlı olarak hesaplanabilir.
B27: 4) Birden fazla ülkeyi kapsayan seyahatlerde, her ülke için ilgili olduğu gündelik tutarı kalış süresiyle orantılı olarak dikkate alınmalıdır.
B28: 5) Gündelik verilen personelin yurt içi ve yurt dışı seyahati ile ilgili yemek ve konaklama giderleri ayrıca belge karşılığında kendisine ödeniyor ve bu belgeler gider veya maliyet olarak dikkate alınıyorsa, ödenen gündelik tutarının tamamının brütleştirilerek ücret olarak vergilendirilmesi gerekir.

Sheet Dilim (hidden)
C2: Bilgisayar Tarihi | E2: 2024-07-07
F6: 2024-01-01 | G6: 2024-07-01 | I6: 5 Ocak 2024 tarihli Hazine ve Maliye Bakanlığı Kamu Mali Yönetim ve Dönüşüm GM Genelgesinde
C7: MEMUR GÖSTERGE AYLIĞI KATSAYISI | F7: 0.760871 | G7: 0,907796
C8: TABAN AYLIĞI KATSAYISI | F8: 11.909083 | G8: 14.208727
C10: YurtİÇİ Harcırah Dilimleri ( Ocak-Haziran 2024 Dönemi İçin)
E13: MEMUR TABAN AYLIĞI | H13: MEMUR GÖSTERGE AYLIĞI | M13: TOPLAM | O13: Geç. Tarihi | P13: =+F6 -> 2024-01-01
C14: MEMUR DERECELERİ | D14: EMSAL MEMUR KADROSU | E14: TABAN AYLIĞI GÖSTERGESİ (SABİT) | F14: TABAN AYLIĞI KATSAYISI | G14: TABAN AYLIĞI | H14: D.M GÖSTERGE (SABİT) | I14: D.M. EK GÖSTERGE | J14: TOPLAM GÖSTERGE | K14: GÖSTERGE AYLIĞI KATSAYISI | L14: GÖSTERGE AYLIĞI | M14: BRÜT AYLIK | O14: Dereceler | P14: En Alt | Q14: En Üst
C15: 1.Derece | D15: Başbakanlık Müsteşarı | E15: 1000 | F15: =$F$8 -> 11.909083 | H15: 1500 | M15: =+M16+0.01 -> 19137.35 | O15: 1 | P15: =+M16+0.01 -> 19137.35 | Q15: 999999
C16: 1.Derece | D16: 8000 Ve Daha Yüksek Ek Göstergeli Kadrolar | E16: 1000 | F16: =$F$8 -> 11.909083 | G16: =FIXED(E16*F16,2,TRUE) -> 11909,08 | H16: 1500 | I16: 8000 | J16: =H16+I16 -> 9500 | K16: =$F$7 -> 0.760871 | L16: =FIXED(J16*K16,2,TRUE) -> 7228,27 | M16: =G16+L16-0.01 -> 19137.34 | O16: 2 | P16: =+M17+0.01 -> 19000.41 | Q16: =+M16 -> 19137.34
C17: 1.Derece | D17: 5800-8.000 (hariç) Ek Göstergeli Kadrolar | E17: 1000 | F17: =$F$8 -> 11.909083 | G17: =FIXED(E17*F17,2,TRUE) -> 11909,08 | H17: 1500 | I17: 7820 | J17: =H17+I17 -> 9320 | K17: =$F$7 -> 0.760871 | L17: =FIXED(J17*K17,2,TRUE) -> 7091,32 | M17: =G17+L17 -> 19000.4 | O17: 3 | P17: =+M18+0.01 -> 17326.48 | Q17: =+M17 -> 19000.4
C18: 1.Derece | D18: 3000 - 5800 (hariç) Ek Göstergeli Kadrolar | E18: 1000 | F18: 11.909083 | G18: =FIXED(E18*F18,2,TRUE) -> 11909,08 | H18: 1500 | I18: 5620 | J18: =H18+I18 -> 7120 | K18: =$F$7 -> 0.760871 | L18: =FIXED(J18*K18,2,TRUE) -> 5417,40 | M18: =G18+L18-0.01 -> 17326.47 | O18: 4 | P18: =+M19+0.01 -> 15956.91 | Q18: =+M18 -> 17326.47
C19: 1-4 Derece | D19: 1-4 Dereceli Kadrolar | E19: 1000 | F19: 11.909083 | G19: =FIXED(E19*F19,2,TRUE) -> 11909,08 | H19: 1500 | I19: 3820 | J19: =H19+I19 -> 5320 | K19: =$F$7 -> 0.760871 | L19: =FIXED(J19*K19,2,TRUE) -> 4047,83 | M19: =G19+L19-0.01 -> 15956.9 | O19: 5 | P19: =+M20+0.01 -> 12605.28 | Q19: =+M19 -> 15956.9
C20: 5-15 Derece | D20: 5-15 Dereceli Kadrolar | E20: 1000 | F20: 11.909083 | G20: =FIXED(E20*F20,2,TRUE) -> 11909,08 | H20: 915 | I20: 0 | J20: =H20+I20 -> 915 | K20: =$F$7 -> 0.760871 | L20: =FIXED(J20*K20,2,TRUE) -> 696,20 | M20: =G20+L20-0.01 -> 12605.27 | O20: 6 | P20: 1 | Q20: =+M20 -> 12605.27
C22: YurtİÇİ Harcırah Dilimleri ( Temmuz-Aralık 2024 Dönemi İçin)
E25: MEMUR TABAN AYLIĞI | H25: MEMUR GÖSTERGE AYLIĞI | M25: TOPLAM | O25: Geç. Tarihi | P25: =+G6 -> 2024-07-01
C26: MEMUR DERECELERİ | D26: EMSAL MEMUR KADROSU | E26: TABAN AYLIĞI GÖSTERGESİ (SABİT) | F26: TABAN AYLIĞI KATSAYISI | G26: TABAN AYLIĞI | H26: D.M GÖSTERGE (SABİT) | I26: D.M. EK GÖSTERGE | J26: TOPLAM GÖSTERGE | K26: GÖSTERGE AYLIĞI KATSAYISI | L26: GÖSTERGE AYLIĞI | M26: BRÜT AYLIK | O26: Dereceler | P26: En Alt | Q26: En Üst
C27: 1.Derece | D27: Başbakanlık Müsteşarı | E27: 1000 | F27: =$G$8 -> 14.208727 | H27: 1500 | M27: =+M28+0.01 -> 22832.79 | O27: 1 | P27: =+M28+0.01 -> 22832.79 | Q27: 999999
C28: 1.Derece | D28: 8000 Ek Göstergeli Kadrolar | E28: 1000 | F28: 14.208727 | G28: =FIXED(E28*F28,2,TRUE) -> 14208,73 | H28: 1500 | I28: 8000 | J28: =H28+I28 -> 9500 | K28: =$G$7 -> 0,907796 | L28: =FIXED(J28*K28,2,TRUE) -> 8624,06 | M28: =G28+L28-0.01 -> 22832.78 | O28: 2 | P28: =+M29+0.01 -> 22669.4 | Q28: =+M28 -> 22832.78
C29: 1.Derece | D29: 5800+ Ek Göstergeli Kadrolar | E29: 1000 | F29: 14.208727 | G29: =FIXED(E29*F29,2,TRUE) -> 14208,73 | H29: 1500 | I29: 7820 | J29: =H29+I29 -> 9320 | K29: =$G$7 -> 0,907796 | L29: =FIXED(J29*K29,2,TRUE) -> 8460,66 | M29: =G29+L29 -> 22669.39 | O29: 3 | P29: =+M30+0.01 -> 20672.24 | Q29: =+M29 -> 22669.39
C30: 1.Derece | D30: 5300 Ek Göstergeli Kadrolar | E30: 1000 | F30: 14.208727 | G30: =FIXED(E30*F30,2,TRUE) -> 14208,73 | H30: 1500 | I30: 5620 | J30: =H30+I30 -> 7120 | K30: =$G$7 -> 0,907796 | L30: =FIXED(J30*K30,2,TRUE) -> 6463,51 | M30: =G30+L30-0.01 -> 20672.23 | O30: 4 | P30: =+M31+0.01 -> 19038.2 | Q30: =+M30 -> 20672.23
C31: 1-4 Derece | D31: 1-4 Dereceli Kadrolar | E31: 1000 | F31: 14.208727 | G31: =FIXED(E31*F31,2,TRUE) -> 14208,73 | H31: 1500 | I31: 3820 | J31: =H31+I31 -> 5320 | K31: =$G$7 -> 0,907796 | L31: =FIXED(J31*K31,2,TRUE) -> 4829,47 | M31: =G31+L31-0.01 -> 19038.19 | O31: 5 | P31: =+M32+0.01 -> 15039.36 | Q31: =+M31 -> 19038.19
C32: 5-15 Derece | D32: 5-15 Dereceli Kadrolar | E32: 1000 | F32: 14.208727 | G32: =FIXED(E32*F32,2,TRUE) -> 14208,73 | H32: 915 | I32: 0 | J32: =H32+I32 -> 915 | K32: =$G$7 -> 0,907796 | L32: =FIXED(J32*K32,2,TRUE) -> 830,63 | M32: =G32+L32-0.01 -> 15039.35 | O32: 6 | P32: 1 | Q32: =+M32 -> 15039.35
C35: YurtDIŞI Harcırah Dilimleri ( Ocak-Haziran 2024 Dönemi İçin)
E38: MEMUR TABAN AYLIĞI | H38: MEMUR GÖSTERGE AYLIĞI | M38: TOPLAM | O38: Geç. Tarihi | P38: =+F6 -> 2024-01-01
C39: MEMUR DERECELERİ | D39: EMSAL MEMUR KADROSU | E39: TABAN AYLIĞI GÖSTERGESİ (SABİT) | F39: TABAN AYLIĞI KATSAYISI | G39: TABAN AYLIĞI | H39: D.M GÖSTERGE (SABİT) | I39: D.M. EK GÖSTERGE | J39: TOPLAM GÖSTERGE | K39: GÖSTERGE AYLIĞI KATSAYISI | L39: GÖSTERGE AYLIĞI | M39: BRÜT AYLIK | O39: Denk Geldiği Sütun | P39: En Alt | Q39: En Üst
C40: 1.Derece | D40: Başbakanlık Müsteşarı | E40: 1000 | F40: =$F$8 -> 11.909083 | H40: 1500 | M40: =+M41+0.01 -> 19137.35 | O40: II | P40: =+M41+0.01 -> 19137.35 | Q40: 999999
C41: 1.Derece | D41: 8000 Ek Göstergeli Kadrolar | E41: 1000 | F41: =$F$8 -> 11.909083 | G41: =FIXED(E41*F41,2,TRUE) -> 11909,08 | H41: 1500 | I41: 8000 | J41: =H41+I41 -> 9500 | K41: =$F$7 -> 0.760871 | L41: =FIXED(J41*K41,2,TRUE) -> 7228,27 | M41: =G41+L41-0.01 -> 19137.34 | O41: III | P41: =+M42+0.01 -> 19000.41 | Q41: =+M41 -> 19137.34
C42: 1.Derece | D42: 5300+ Ek Göstergeli Kadrolar | E42: 1000 | F42: =$F$8 -> 11.909083 | G42: =FIXED(E42*F42,2,TRUE) -> 11909,08 | H42: 1500 | I42: 7820 | J42: =H42+I42 -> 9320 | K42: =$F$7 -> 0.760871 | L42: =FIXED(J42*K42,2,TRUE) -> 7091,32 | M42: =G42+L42 -> 19000.4 | O42: IV | P42: =+M43+0.01 -> 16946.05 | Q42: =+M42 -> 19000.4
C43: 1.Derece | D43: 5300 Ek Göstergeli Kadrolar | E43: 1000 | F43: =$F$8 -> 11.909083 | G43: =FIXED(E43*F43,2,TRUE) -> 11909,08 | H43: 1500 | I43: 5120 | J43: =H43+I43 -> 6620 | K43: =$F$7 -> 0.760871 | L43: =FIXED(J43*K43,2,TRUE) -> 5036,97 | M43: =G43+L43-0.01 -> 16946.04 | O43: V | P43: =+Q44+0.01 -> 12605.28 | Q43: =+M43 -> 16946.04
C44: 5-15 Derece | D44: 5-15 Dereceli Kadrolar | E44: 1000 | F44: =$F$8 -> 11.909083 | G44: =FIXED(E44*F44,2,TRUE) -> 11909,08 | H44: 915 | I44: 0 | J44: =H44+I44 -> 915 | K44: =$F$7 -> 0.760871 | L44: =FIXED(J44*K44,2,TRUE) -> 696,20 | M44: =G44+L44-0.01 -> 12605.27 | O44: VI | P44: 1 | Q44: =+M44 -> 12605.27
C46: YurtDIŞI Harcırah Dilimleri ( Temmuz-Aralık 2024 Dönemi İçin)
E49: MEMUR TABAN AYLIĞI | H49: MEMUR GÖSTERGE AYLIĞI | M49: TOPLAM | O49: Geç. Tarihi | P49: =+G6 -> 2024-07-01
C50: MEMUR DERECELERİ | D50: EMSAL MEMUR KADROSU | E50: TABAN AYLIĞI GÖSTERGESİ (SABİT) | F50: TABAN AYLIĞI KATSAYISI | G50: TABAN AYLIĞI | H50: D.M GÖSTERGE (SABİT) | I50: D.M. EK GÖSTERGE | J50: TOPLAM GÖSTERGE | K50: GÖSTERGE AYLIĞI KATSAYISI | L50: GÖSTERGE AYLIĞI | M50: BRÜT AYLIK | O50: Denk Geldiği Sütun | P50: En Alt | Q50: En Üst
C51: 1.Derece | D51: Başbakanlık Müsteşarı | E51: 1000 | F51: =$G$8 -> 14.208727 | H51: 1500 | M51: =+M52+0.01 -> 22832.79 | O51: II | P51: =+M52+0.01 -> 22832.79 | Q51: 999999
C52: 1.Derece | D52: 8000 Ek Göstergeli Kadrolar | E52: 1000 | F52: =$G$8 -> 14.208727 | G52: =FIXED(E52*F52,2,TRUE) -> 14208,73 | H52: 1500 | I52: 8000 | J52: =H52+I52 -> 9500 | K52: =$G$7 -> 0,907796 | L52: =FIXED(J52*K52,2,TRUE) -> 8624,06 | M52: =G52+L52-0.01 -> 22832.78 | O52: III | P52: =+M53+0.01 -> 22669.4 | Q52: =+M52 -> 22832.78
C53: 1.Derece | D53: 5300+ Ek Göstergeli Kadrolar | E53: 1000 | F53: =$G$8 -> 14.208727 | G53: =FIXED(E53*F53,2,TRUE) -> 14208,73 | H53: 1500 | I53: 7820 | J53: =H53+I53 -> 9320 | K53: =$G$7 -> 0,907796 | L53: =FIXED(J53*K53,2,TRUE) -> 8460,66 | M53: =G53+L53 -> 22669.39 | O53: IV | P53: =+M54+0.01 -> 19244.27 | Q53: =+M53 -> 22669.39
C54: 1.Derece | D54: 5300 Ek Göstergeli Kadrolar | E54: 1000 | F54: =$G$8 -> 14.208727 | G54: =FIXED(E54*F54,2,TRUE) -> 14208,73 | H54: 1500 | I54: 4047 | J54: =H54+I54 -> 5547 | K54: =$G$7 -> 0,907796 | L54: =FIXED(J54*K54,2,TRUE) -> 5035,54 | M54: =G54+L54-0.01 -> 19244.26 | O54: V | P54: =+Q55+0.01 -> 15039.36 | Q54: =+M54 -> 19244.26
C55: 5-15 Derece | D55: 5-15 Dereceli Kadrolar | E55: 1000 | F55: =$G$8 -> 14.208727 | G55: =FIXED(E55*F55,2,TRUE) -> 14208,73 | H55: 915 | I55: 0 | J55: =H55+I55 -> 915 | K55: =$G$7 -> 0,907796 | L55: =FIXED(J55*K55,2,TRUE) -> 830,63 | M55: =G55+L55-0.01 -> 15039.35 | O55: VI | P55: 1 | Q55: =+M55 -> 15039.35
C58: KKTC Harcırah Dilimleri ( Ocak-Haziran 2023 Dönemi İçin)
E61: MEMUR TABAN AYLIĞI | H61: MEMUR GÖSTERGE AYLIĞI | M61: TOPLAM | O61: Geç. Tarihi | P61: =+F6 -> 2024-01-01
C62: MEMUR DERECELERİ | D62: EMSAL MEMUR KADROSU | E62: TABAN AYLIĞI GÖSTERGESİ (SABİT) | F62: TABAN AYLIĞI KATSAYISI | G62: TABAN AYLIĞI | H62: D.M GÖSTERGE (SABİT) | I62: D.M. EK GÖSTERGE | J62: TOPLAM GÖSTERGE | K62: GÖSTERGE AYLIĞI KATSAYISI | L62: GÖSTERGE AYLIĞI | M62: BRÜT AYLIK | O62: Denk Geldiği Sütun | P62: En Alt | Q62: En Üst
C63: 1.Derece | D63: Başbakanlık Müsteşarı | E63: 1000 | F63: =$F$8 -> 11.909083 | G63: =FIXED(E63*F63,2,TRUE) -> 11909,08 | H63: 1500 | M63: =+M64+0.01 -> 19137.35 | O63: II | P63: =+M64+0.01 -> 19137.35 | Q63: 999999
C64: 2-4.Derece | D64: 8000 Ek Göstergeli Kadrolar | E64: 1000 | F64: =$F$8 -> 11.909083 | G64: =FIXED(E64*F64,2,TRUE) -> 11909,08 | H64: 1500 | I64: 8000 | J64: =H64+I64 -> 9500 | K64: =$F$7 -> 0.760871 | L64: =FIXED(J64*K64,2,TRUE) -> 7228,27 | M64: =G64+L64-0.01 -> 19137.34 | O64: III | P64: =+M65+0.01 -> 19000.41 | Q64: =+M64 -> 19137.34
C65: 5-15.Derece | D65: 5300+ Ek Göstergeli Kadrolar | E65: 1000 | F65: =$F$8 -> 11.909083 | G65: =FIXED(E65*F65,2,TRUE) -> 11909,08 | H65: 1500 | I65: 7820 | J65: =H65+I65 -> 9320 | K65: =$F$7 -> 0.760871 | L65: =FIXED(J65*K65,2,TRUE) -> 7091,32 | M65: =G65+L65 -> 19000.4 | O65: IV | P65: =+M66+0.01 -> 16946.05 | Q65: =+M65 -> 19000.4
C66: 5-15.Derece | D66: 5300+ Ek Göstergeli Kadrolar | E66: 1000 | F66: =$F$8 -> 11.909083 | G66: =FIXED(E66*F66,2,TRUE) -> 11909,08 | H66: 1500 | I66: 5120 | J66: =H66+I66 -> 6620 | K66: =$F$7 -> 0.760871 | L66: =FIXED(J66*K66,2,TRUE) -> 5036,97 | M66: =G66+L66-0.01 -> 16946.04 | O66: V | P66: =+Q67+0.01 -> 12605.28 | Q66: =+M66 -> 16946.04
C67: 5-15.Derece | D67: 5300+ Ek Göstergeli Kadrolar | E67: 1000 | F67: =$F$8 -> 11.909083 | G67: =FIXED(E67*F67,2,TRUE) -> 11909,08 | H67: 915 | I67: 0 | J67: =H67+I67 -> 915 | K67: =$F$7 -> 0.760871 | L67: =FIXED(J67*K67,2,TRUE) -> 696,20 | M67: =G67+L67-0.01 -> 12605.27 | O67: VI | P67: 1 | Q67: =+M67 -> 12605.27
C69: KKTC Harcırah Dilimleri ( Temmuz-Aralık 2023 Dönemi İçin)
E72: MEMUR TABAN AYLIĞI | H72: MEMUR GÖSTERGE AYLIĞI | M72: TOPLAM | O72: Geç. Tarihi | P72: =+G6 -> 2024-07-01
C73: MEMUR DERECELERİ | D73: EMSAL MEMUR KADROSU | E73: TABAN AYLIĞI GÖSTERGESİ (SABİT) | F73: TABAN AYLIĞI KATSAYISI | G73: TABAN AYLIĞI | H73: D.M GÖSTERGE (SABİT) | I73: D.M. EK GÖSTERGE | J73: TOPLAM GÖSTERGE | K73: GÖSTERGE AYLIĞI KATSAYISI | L73: GÖSTERGE AYLIĞI | M73: BRÜT AYLIK | O73: Denk Geldiği Sütun | P73: En Alt | Q73: En Üst
C74: 1.Derece | D74: Başbakanlık Müsteşarı | E74: 1000 | F74: =$G$8 -> 14.208727 | H74: 1500 | M74: =+M75+0.01 -> 22832.79 | O74: II | P74: =+M75+0.01 -> 22832.79 | Q74: 999999
C75: 1.Derece | D75: 8000 Ek Göstergeli Kadrolar | E75: 1000 | F75: =$G$8 -> 14.208727 | G75: =FIXED(E75*F75,2,TRUE) -> 14208,73 | H75: 1500 | I75: 8000 | J75: =H75+I75 -> 9500 | K75: =$G$7 -> 0,907796 | L75: =FIXED(J75*K75,2,TRUE) -> 8624,06 | M75: =G75+L75-0.01 -> 22832.78 | O75: III | P75: =+M76+0.01 -> 22669.4 | Q75: =+M75 -> 22832.78
C76: 1.Derece | D76: 5300+ Ek Göstergeli Kadrolar | E76: 1000 | F76: =$G$8 -> 14.208727 | G76: =FIXED(E76*F76,2,TRUE) -> 14208,73 | H76: 1500 | I76: 7820 | J76: =H76+I76 -> 9320 | K76: =$G$7 -> 0,907796 | L76: =FIXED(J76*K76,2,TRUE) -> 8460,66 | M76: =G76+L76 -> 22669.39 | O76: IV | P76: =+M77+0.01 -> 19244.27 | Q76: =+M76 -> 22669.39
C77: 1.Derece | D77: 5300 Ek Göstergeli Kadrolar | E77: 1000 | F77: =$G$8 -> 14.208727 | G77: =FIXED(E77*F77,2,TRUE) -> 14208,73 | H77: 1500 | I77: 4047 | J77: =H77+I77 -> 5547 | K77: =$G$7 -> 0,907796 | L77: =FIXED(J77*K77,2,TRUE) -> 5035,54 | M77: =G77+L77-0.01 -> 19244.26 | O77: V | P77: =+Q78+0.01 -> 15039.36 | Q77: =+M77 -> 19244.26
C78: 5-15 Derece | D78: 5-15 Dereceli Kadrolar | E78: 1000 | F78: =$G$8 -> 14.208727 | G78: =FIXED(E78*F78,2,TRUE) -> 14208,73 | H78: 915 | I78: 0 | J78: =H78+I78 -> 915 | K78: =$G$7 -> 0,907796 | L78: =FIXED(J78*K78,2,TRUE) -> 830,63 | M78: =G78+L78-0.01 -> 15039.35 | O78: VI | P78: 1 | Q78: =+M78 -> 15039.35

Sheet Şerif (hidden)
A1: Data sayfa koruması | B1: 561998
